[Event "Najdorf Memorial-B 2022"]
[Site "Warsaw"]
[Date "2022.07.16"]
[Round "8.15"]
[White "Morczynski, Joachim"]
[Black "Machnik, Stanislaw"]
[Result "1/2-1/2"]
[ECO "B21"]
[WhiteElo "1762"]
[BlackElo "1381"]
[Annotator "NA"]
[PlyCount "98"]
[EventDate "2022.07.09"]
[EventType "swiss"]
[EventCountry "POL"]
[SourceTitle "playchess.com"]
[Source "ChessBase"]
[SourceQuality "1"]
[TimeControl "40/5400+30:1800+30"]

1. e4 {[%emt 0:00:03]} c5 {[%emt 0:00:04]} 2. d4 {[%emt 0:00:04]} cxd4 {[%emt 0:00:30]} 3. c3 {[%emt 0:00:04]} Nf6 {[%emt 0:00:21]} 4. e5 {[%emt 0:00:04]} Nd5 {[%emt 0:00:05]} 5. Qxd4 {[%emt 0:00:17]} e6 {[%emt 0:00:23]} 6. Nf3 {[%emt 0:00:04]} Nc6 {[%emt 0:00:27]} 7. Qe4 {[%emt 0:00:05]} d6 {[%emt 0:03:01]} 8. Bb5 {[%emt 0:01:15]} Bd7 {[%emt 0:05:08]} 9. exd6 {[%emt 0:02:43]} Bxd6 {[%emt 0:00:41]} 10. O-O {[%emt 0:00:13]} O-O {[%emt 0:05:14]} 11. Rd1 {[%emt 0:03:53]} Qb6 {[%emt 0:02:12]} 12. c4 {[%emt 0:00:46]} Nf6 {[%emt 0:00:41]} 13. Qh4 {[%emt 0:00:08]} Be7 {[%emt 0:09:52]} 14. Be3 {[%emt 0:00:23]} Qc7 {[%emt 0:02:40]} 15. Bf4 {[%emt 0:01:09]} Qc8 {[%emt 0:15:03]} 16. Ne5 {[%emt 0:09:05]} Nxe5 {[%emt 0:05:56]} 17. Bxe5 {[%emt 0:00:07]} Bxb5 {[%emt 0:00:16]} 18. cxb5 {[%emt 0:00:09]} Qc5 {[%emt 0:01:48]} 19. Bd4 {[%emt 0:04:27]} Qxb5 {[%emt 0:01:37]} 20. Nc3 {[%emt 0:00:09]} Qh5 {[%emt 0:02:31]} 21. Qg3 {[%emt 0:01:24]} Rfd8 {[%emt 0:08:03]} 22. Ne4 {[%emt 0:02:31]} Qg6 {[%emt 0:01:15]} 23. Qxg6 {[%emt 0:10:27]} hxg6 {[%emt 0:01:08]} 24. Bc5 {[%emt 0:03:30]} Kf8 {[%emt 0:02:43]} 25. Nxf6 {[%emt 0:05:25]} gxf6 {[%emt 0:00:05]} 26. Rxd8+ {[%emt 0:00:06]} Rxd8 {[%emt 0:00:15]} 27. Bxa7 {[%emt 0:00:04]} Rd2 {[%emt 0:02:14]} 28. Rb1 {[%emt 0:01:17]} b5 {[%emt 0:03:31]} 29. a3 {[%emt 0:01:49]} Bd6 {[%emt 0:01:06]} 30. Be3 {[%emt 0:00:49]} Rc2 {[%emt 0:00:31]} 31. g3 {[%emt 0:02:54]} Be5 {[%emt 0:01:49]} 32. b3 {[%emt 0:01:43]} Ra2 {[%emt 0:05:14]} 33. Bc5+ {[%emt 0:00:41]} Kg7 {[%emt 0:00:33]} 34. Kg2 {[%emt 0:00:57]} Bb2 {[%emt 0:01:48]} 35. a4 {[%emt 0:00:22]} bxa4 {[%emt 0:00:06]} 36. bxa4 {[%emt 0:00:05]} Bc3 {[%emt 0:00:33]} 37. Rc1 {[%emt 0:00:07]} Ba5 {[%emt 0:01:34]} 38. Rc4 {[%emt 0:00:11]} g5 {[%emt 0:03:24]} 39. h4 {[%emt 0:02:03]} Kg6 {[%emt 0:01:30]} 40. Be3 {[%emt 0:00:00]} Bd2 {[%emt 0:00:00]} 41. Bxd2 {[%emt 0:03:43]} Rxd2 {[%emt 0:04:11]} 42. Rc7 {[%emt 0:01:01]} Rd4 {[%emt 0:03:50]} 43. h5+ {[%emt 0:00:49]} Kxh5 {[%emt 0:08:33]} 44. Rxf7 {[%emt 0:00:08]} Kg6 {[%emt 0:04:08]} 45. Ra7 {[%emt 0:00:08]} Kf5 {[%emt 0:00:11]} 46. a5 {[%emt 0:00:27]} Ra4 {[%emt 0:00:28]} 47. a6 {[%emt 0:00:26]} g4 {[%emt 0:00:35]} 48. Ra8 {[%emt 0:00:22]} Ra1 {[%emt 0:03:24]} 49. a7 {[%emt 0:00:19]} Ke5 {[%emt 0:01:43]} 1/2-1/2

[Event "Najdorf Memorial-B 2022"]
[Site "Warsaw"]
[Date "2022.07.16"]
[Round "8.16"]
[White "Flis, Piotr"]
[Black "Nowak, Lukasz"]
[Result "1/2-1/2"]
[ECO "B41"]
[WhiteElo "1523"]
[BlackElo "2327"]
[Annotator "ChessBase"]
[PlyCount "75"]
[EventDate "2022.07.09"]
[EventType "swiss"]
[EventCountry "POL"]
[SourceTitle "playchess.com"]
[Source "ChessBase"]
[SourceQuality "1"]
[TimeControl "40/5400+30:1800+30"]

1. e4 {[%emt 0:01:35]} c5 {[%emt 0:00:07]} 2. Nf3 {[%emt 0:00:15]} e6 {[%emt 0:00:07]} 3. d4 {[%emt 0:00:09]} cxd4 {[%emt 0:00:06]} 4. Nxd4 {[%emt 0:00:11]} a6 {[%emt 0:00:07]} 5. c4 {[%emt 0:00:38]} Nf6 {[%emt 0:00:07]} 6. Nc3 {[%emt 0:00:09]} Qc7 {[%emt 0:00:04]} 7. a3 {[%emt 0:00:09]} b6 {[%emt 0:00:21]} 8. Be2 {[%emt 0:01:53]} Bb7 {[%emt 0:00:16]} 9. f3 {[%emt 0:00:10]} d6 {[%emt 0:00:13]} 10. Be3 {[%emt 0:00:18]} Nbd7 {[%emt 0:00:13]} 11. Rc1 {[%emt 0:00:47]} Be7 {[%emt 0:00:17]} 12. O-O {[%emt 0:00:11]} O-O {[%emt 0:01:03]} 13. b4 {[%emt 0:02:48]} Rac8 {[%emt 0:00:44]} 14. Qd2 {[%emt 0:05:46]} Rfe8 {[%emt 0:00:33]} 15. Na4 {[%emt 0:13:47]} Qb8 {[%emt 0:02:43]} 16. Nb2 {[%emt 0:07:05]} d5 {[%emt 0:12:22]} 17. exd5 {[%emt 0:05:29]} exd5 {[%emt 0:00:05]} 18. Bf4 {[%emt 0:13:26]} Bd6 {[%emt 0:00:49]} 19. Bxd6 {[%emt 0:00:10]} Qxd6 {[%emt 0:00:05]} 20. Nf5 {[%emt 0:01:17]} Qe5 {[%emt 0:08:28]} 21. Ng3 {[%emt 0:01:44]} Qe3+ {[%emt 0:03:59]} 22. Qxe3 {[%emt 0:00:09]} Rxe3 {[%emt 0:00:04]} 23. cxd5 {[%emt 0:03:21]} Rxc1 {[%emt 0:01:38]} 24. Rxc1 {[%emt 0:00:08]} Nxd5 {[%emt 0:00:13]} 25. Nc4 {[%emt 0:00:45]} Rc3 {[%emt 0:01:48]} 26. Rxc3 {[%emt 0:00:39]} Nxc3 {[%emt 0:00:05]} 27. Bd3 {[%emt 0:01:16]} b5 {[%emt 0:06:49]} 28. Nd6 {[%emt 0:01:43]} Bd5 {[%emt 0:01:03]} 29. Nge4 {[%emt 0:00:30]} Nxe4 {[%emt 0:03:16]} 30. Nxe4 {[%emt 0:00:16]} Ne5 {[%emt 0:01:04]} 31. Be2 {[%emt 0:00:48]} Be6 {[%emt 0:05:14]} 32. Nc5 {[%emt 0:02:25]} Bc8 {[%emt 0:00:05]} 33. Kf2 {[%emt 0:00:16]} Kf8 {[%emt 0:00:59]} 34. Ke3 {[%emt 0:00:11]} Ke7 {[%emt 0:00:18]} 35. Bd3 {[%emt 0:00:26]} Nxd3 {[%emt 0:01:32]} 36. Kxd3 {[%emt 0:00:09]} h6 {[%emt 0:00:55]} 37. f4 {[%emt 0:00:17]} Kd6 {[%emt 0:00:57]} 38. Kd4 {[%emt 0:00:18]} 1/2-1/2

[Event "Najdorf Memorial-B 2022"]
[Site "Warsaw"]
[Date "2022.07.16"]
[Round "8.17"]
[White "Gajewski, Dariusz"]
[Black "Adamowicz, Michal"]
[Result "0-1"]
[ECO "B20"]
[WhiteElo "1697"]
[BlackElo "1408"]
[Annotator "NA"]
[PlyCount "38"]
[EventDate "2022.07.09"]
[EventType "swiss"]
[EventCountry "POL"]
[SourceTitle "playchess.com"]
[Source "ChessBase"]
[SourceQuality "1"]
[TimeControl "40/5400+30:1800+30"]

1. e4 {[%emt 0:00:02]} c5 {[%emt 0:00:03]} 2. a3 {[%emt 0:00:08]} Nc6 {[%emt 0:00:09]} 3. b4 {[%emt 0:00:05]} e5 {[%emt 0:00:08]} 4. b5 {[%emt 0:00:11]} Nd4 {[%emt 0:00:03]} 5. c4 {[%emt 0:00:58]} d6 {[%emt 0:04:40]} 6. g3 {[%emt 0:00:19]} h5 {[%emt 0:01:25]} 7. h3 {[%emt 0:01:36]} f5 {[%emt 0:06:09]} 8. d3 {[%emt 0:00:49]} h4 {[%emt 0:11:21]} 9. Bg2 {[%emt 0:00:37]} hxg3 {[%emt 0:08:13]} 10. fxg3 {[%emt 0:00:02]} Qf6 {[%emt 0:13:57]} 11. Nc3 {[%emt 0:01:55]} Qg6 {[%emt 0:01:41]} 12. Kf2 {[%emt 0:07:20]} Nf6 {[%emt 0:10:31]} 13. Nge2 {[%emt 0:02:12]} Be7 {[%emt 0:04:11]} 14. Be3 {[%emt 0:00:33]} O-O {[%emt 0:11:56]} 15. Kg1 {[%emt 0:01:00]} fxe4 {[%emt 0:01:20]} 16. Nxe4 {[%emt 0:02:12]} Nxe4 {[%emt 0:04:40]} 17. Bxd4 {[%emt 0:05:28]} Nxg3 {[%emt 0:00:32]} 18. Bf2 {[%emt 0:01:50]} Nxh1 {[%emt 0:00:22]} 19. Nd4 Ng3 0-1

[Event "Najdorf Memorial-B 2022"]
[Site "Warsaw"]
[Date "2022.07.17"]
[Round "9.1"]
[White "Carrieri, Maurizio"]
[Black "Michalowski, Patryk"]
[Result "0-1"]
[ECO "D35"]
[WhiteElo "1666"]
[BlackElo "1726"]
[Annotator "NA COMBH"]
[PlyCount "26"]
[EventDate "2022.07.09"]
[EventType "swiss"]
[EventCountry "POL"]
[SourceTitle "playchess.com"]
[Source "ChessBase"]
[SourceQuality "1"]
[TimeControl "40/5400+30:1800+30"]

1. d4 {[%emt 0:00:03]} d5 {[%emt 0:00:06]} 2. c4 {[%emt 0:00:11]} e6 {[%emt 0:00:05]} 3. Nc3 {[%emt 0:00:10]} Nf6 {[%emt 0:00:06]} 4. cxd5 {[%emt 0:00:05]} exd5 {[%emt 0:00:04]} 5. Bg5 {[%emt 0:00:06]} Be7 {[%emt 0:01:36]} 6. e3 {[%emt 0:00:57]} c6 {[%emt 0:00:07]} 7. Bd3 {[%emt 0:00:46]} Nbd7 {[%emt 0:00:08]} 8. Qc2 {[%emt 0:03:42]} O-O {[%emt 0:00:10]} 9. Nf3 {[%emt 0:04:04]} Re8 {[%emt 0:00:31]} 10. O-O {[%emt 0:06:06]} Nf8 {[%emt 0:00:12]} 11. h3 {[%emt 0:03:38]} Ng6 {[%emt 0:01:25]} 12. Rab1 {[%emt 0:05:16]} Ne4 {[%emt 0:03:02]} 13. Nxe4 {[%emt 0:05:45]} dxe4 0-1

[Event "Najdorf Memorial-B 2022"]
[Site "Warsaw"]
[Date "2022.07.17"]
[Round "9.2"]
[White "Dysko, Michal"]
[Black "Yasmo, Daniil"]
[Result "0-1"]
[ECO "A15"]
[WhiteElo "1376"]
[BlackElo "1680"]
[Annotator "NA COMBH"]
[PlyCount "70"]
[EventDate "2022.07.09"]
[EventType "swiss"]
[EventCountry "POL"]
[SourceTitle "playchess.com"]
[Source "ChessBase"]
[SourceQuality "1"]
[TimeControl "40/5400+30:1800+30"]

1. c4 {[%emt 0:00:10]} Nf6 {[%emt 0:00:09]} 2. g3 {[%emt 0:00:13]} g6 {[%emt 0:00:18]} 3. Bg2 {[%emt 0:00:06]} Bg7 {[%emt 0:00:01]} 4. Nc3 {[%emt 0:00:17]} O-O {[%emt 0:00:10]} 5. e4 {[%emt 0:00:20]} d6 {[%emt 0:00:01]} 6. Nge2 {[%emt 0:00:21]} e5 {[%emt 0:00:30]} 7. d3 {[%emt 0:00:18]} a5 {[%emt 0:00:47]} 8. O-O {[%emt 0:00:22]} Nc6 {[%emt 0:00:48]} 9. h3 {[%emt 0:01:01]} Nd7 {[%emt 0:01:00]} 10. Nd5 {[%emt 0:02:32]} Nc5 {[%emt 0:01:56]} 11. Nec3 {[%emt 0:01:17]} Nd4 {[%emt 0:01:05]} 12. f4 {[%emt 0:11:14]} c6 {[%emt 0:00:59]} 13. Ne3 {[%emt 0:00:01]} exf4 {[%emt 0:01:00]} 14. gxf4 {[%emt 0:01:24]} f5 {[%emt 0:00:10]} 15. exf5 {[%emt 0:02:06]} Nxf5 {[%emt 0:00:45]} 16. Nxf5 {[%emt 0:02:55]} Bxf5 {[%emt 0:00:01]} 17. d4 {[%emt 0:00:10]} Nd3 {[%emt 0:00:33]} 18. d5 {[%emt 0:01:26]} Bd4+ {[%emt 0:02:14]} 19. Kh2 {[%emt 0:00:01]} c5 {[%emt 0:00:56]} 20. Qf3 {[%emt 0:03:46]} Qe7 {[%emt 0:02:57]} 21. Rd1 {[%emt 0:02:21]} Ne1 {[%emt 0:01:47]} 22. Qg3 {[%emt 0:03:21]} Nc2 {[%emt 0:01:00]} 23. Rb1 {[%emt 0:00:40]} Ne3 {[%emt 0:02:23]} 24. Re1 {[%emt 0:02:15]} Rae8 {[%emt 0:03:30]} 25. Ra1 {[%emt 0:02:58]} Ng4+ {[%emt 0:02:37]} 26. hxg4 {[%emt 0:00:28]} Qxe1 {[%emt 0:00:05]} 27. gxf5 {[%emt 0:02:12]} Bf2 {[%emt 0:04:10]} 28. Qd3 {[%emt 0:09:22]} Rxf5 {[%emt 0:01:49]} 29. Kh3 {[%emt 0:01:03]} Rh5+ {[%emt 0:04:08]} 30. Kg4 {[%emt 0:00:11]} Bd4 {[%emt 0:04:29]} 31. Qg3 {[%emt 0:14:31]} Bf2 {[%emt 0:01:43]} 32. Qd3 {[%emt 0:00:02]} Rh4+ {[%emt 0:01:15]} 33. Kf3 {[%emt 0:00:42]} Bg1 {[%emt 0:02:31]} 34. Ne4 {[%emt 0:12:15]} Rxe4 {[%emt 0:00:24]} 35. Qxe4 {[%emt 0:00:04]} Qf2# {[%emt 0:00:09]} 0-1

[Event "Najdorf Memorial-B 2022"]
[Site "Warsaw"]
[Date "2022.07.17"]
[Round "9.3"]
[White "Wieckowski, Michal"]
[Black "Bubien, Antoni"]
[Result "0-1"]
[ECO "E73"]
[WhiteElo "1669"]
[BlackElo "1472"]
[Annotator "NA COMBH"]
[PlyCount "47"]
[EventDate "2022.07.09"]
[EventType "swiss"]
[EventCountry "POL"]
[SourceTitle "playchess.com"]
[Source "ChessBase"]
[SourceQuality "1"]
[TimeControl "40/5400+30:1800+30"]

1. d4 {[%emt 0:00:05]} Nf6 {[%emt 0:00:06]} 2. c4 {[%emt 0:00:03]} g6 {[%emt 0:00:05]} 3. Nc3 {[%emt 0:00:05]} Bg7 {[%emt 0:00:03]} 4. e4 {[%emt 0:00:06]} d6 {[%emt 0:00:04]} 5. Bg5 {[%emt 0:00:11]} O-O {[%emt 0:00:09]} 6. Be2 {[%emt 0:00:33]} a6 {[%emt 0:00:42]} 7. Qd2 {[%emt 0:02:04]} c5 {[%emt 0:00:29]} 8. d5 {[%emt 0:02:45]} b5 {[%emt 0:00:42]} 9. cxb5 {[%emt 0:02:46]} Qa5 {[%emt 0:00:23]} 10. f3 {[%emt 0:05:29]} Nbd7 {[%emt 0:01:06]} 11. a4 {[%emt 0:08:07]} Nb6 {[%emt 0:03:54]} 12. Nd1 {[%emt 0:07:15]} Qxd2+ {[%emt 0:13:55]} 13. Bxd2 c4 14. bxa6 {[%emt 0:18:37]} Bxa6 {[%emt 0:01:57]} 15. a5 {[%emt 0:02:42]} Nbd7 {[%emt 0:00:09]} 16. Rc1 {[%emt 0:03:17]} Rfc8 {[%emt 0:01:37]} 17. Nh3 {[%emt 0:07:49]} Nc5 {[%emt 0:00:49]} 18. Ne3 {[%emt 0:03:05]} Nb3 {[%emt 0:02:25]} 19. Rc2 {[%emt 0:00:23]} Nd4 {[%emt 0:01:33]} 20. Rc3 {[%emt 0:01:37]} Nxe2 {[%emt 0:00:53]} 21. Kxe2 {[%emt 0:00:01]} Nd7 {[%emt 0:00:25]} 22. Nf2 {[%emt 0:00:41]} Nc5 {[%emt 0:04:43]} 23. Rxc4 {[%emt 0:00:18]} Nb3 {[%emt 0:01:51]} 24. Ke1 0-1

[Event "Najdorf Memorial-B 2022"]
[Site "Warsaw"]
[Date "2022.07.17"]
[Round "9.4"]
[White "Marczuk, Wojciech"]
[Black "Nawalaniec, Adam"]
[Result "0-1"]
[ECO "A04"]
[WhiteElo "1324"]
[BlackElo "1768"]
[Annotator "NA COMBH"]
[PlyCount "70"]
[EventDate "2022.07.09"]
[EventType "swiss"]
[EventCountry "POL"]
[SourceTitle "playchess.com"]
[Source "ChessBase"]
[SourceQuality "1"]
[TimeControl "40/5400+30:1800+30"]

1. Nf3 {[%emt 0:00:02]} d6 {[%emt 0:00:15]} 2. c4 {[%emt 0:00:31]} g6 {[%emt 0:00:42]} 3. g3 {[%emt 0:01:35]} Bg7 {[%emt 0:00:41]} 4. Bg2 {[%emt 0:00:14]} Nf6 {[%emt 0:02:26]} 5. O-O {[%emt 0:00:20]} O-O {[%emt 0:01:39]} 6. Nc3 {[%emt 0:00:08]} e5 {[%emt 0:06:37]} 7. d3 {[%emt 0:00:40]} Nc6 {[%emt 0:03:11]} 8. Rb1 {[%emt 0:00:10]} a5 {[%emt 0:02:30]} 9. a3 {[%emt 0:00:10]} Re8 {[%emt 0:06:53]} 10. b4 {[%emt 0:00:12]} axb4 {[%emt 0:01:45]} 11. axb4 {[%emt 0:00:13]} d5 {[%emt 0:03:31]} 12. b5 {[%emt 0:05:51]} Na5 {[%emt 0:01:47]} 13. cxd5 {[%emt 0:03:55]} Nxd5 {[%emt 0:00:17]} 14. Nxd5 {[%emt 0:07:20]} Qxd5 {[%emt 0:00:02]} 15. Bb2 {[%emt 0:02:30]} Qd6 {[%emt 0:09:33]} 16. Nd2 {[%emt 0:11:28]} Be6 {[%emt 0:04:50]} 17. Bc3 {[%emt 0:03:21]} Bd5 {[%emt 0:07:13]} 18. Qc2 {[%emt 0:12:02]} Bxg2 {[%emt 0:06:38]} 19. Kxg2 {[%emt 0:00:44]} b6 {[%emt 0:00:21]} 20. Rfc1 {[%emt 0:01:57]} Qd5+ {[%emt 0:05:56]} 21. Kg1 {[%emt 0:05:00]} Nb7 {[%emt 0:01:00]} 22. Bb4 {[%emt 0:05:23]} Rac8 {[%emt 0:05:13]} 23. Qc6 {[%emt 0:04:05]} Qxc6 {[%emt 0:00:11]} 24. Rxc6 {[%emt 0:00:13]} Nd8 {[%emt 0:00:43]} 25. Rc2 {[%emt 0:02:04]} Ne6 {[%emt 0:00:20]} 26. Nf3 {[%emt 0:03:50]} f6 {[%emt 0:08:36]} 27. Rbc1 {[%emt 0:01:14]} Rcd8 {[%emt 0:01:39]} 28. Kf1 {[%emt 0:02:32]} Rd5 {[%emt 0:00:15]} 29. Nd2 {[%emt 0:07:01]} Rxb5 {[%emt 0:00:21]} 30. Ba3 {[%emt 0:00:19]} Ra8 {[%emt 0:01:14]} 31. Bb2 {[%emt 0:02:38]} Kf7 {[%emt 0:02:14]} 32. Ne4 {[%emt 0:01:18]} f5 {[%emt 0:04:51]} 33. Nc3 {[%emt 0:06:30]} Rc5 {[%emt 0:00:13]} 34. e4 {[%emt 0:01:02]} Nd4 {[%emt 0:00:07]} 35. exf5 {[%emt 0:02:30]} gxf5 {[%emt 0:01:07]} 0-1

[Event "Najdorf Memorial-B 2022"]
[Site "Warsaw"]
[Date "2022.07.17"]
[Round "9.5"]
[White "Poniewierski, Piotr"]
[Black "Grzelak, Piotr"]
[Result "0-1"]
[ECO "A04"]
[WhiteElo "1747"]
[BlackElo "1684"]
[Annotator "NA COMBH"]
[PlyCount "76"]
[EventDate "2022.07.09"]
[EventType "swiss"]
[EventCountry "POL"]
[SourceTitle "playchess.com"]
[Source "ChessBase"]
[SourceQuality "1"]
[TimeControl "40/5400+30:1800+30"]

1. Nf3 {[%emt 0:00:05]} d6 {[%emt 0:00:11]} 2. d4 {[%emt 0:00:21]} Nf6 {[%emt 0:00:04]} 3. g3 {[%emt 0:00:28]} Nbd7 {[%emt 0:00:07]} 4. Bg2 {[%emt 0:00:30]} e5 {[%emt 0:00:16]} 5. c4 {[%emt 0:00:19]} c6 {[%emt 0:00:08]} 6. Nc3 {[%emt 0:04:52]} e4 {[%emt 0:00:11]} 7. Ng5 {[%emt 0:01:09]} d5 {[%emt 0:00:12]} 8. cxd5 {[%emt 0:02:30]} cxd5 {[%emt 0:00:15]} 9. Qb3 {[%emt 0:01:36]} Nb6 {[%emt 0:14:18]} 10. O-O {[%emt 0:06:54]} Be7 {[%emt 0:01:48]} 11. a4 {[%emt 0:04:17]} a5 {[%emt 0:00:21]} 12. f3 {[%emt 0:09:13]} exf3 {[%emt 0:01:03]} 13. Nxf3 {[%emt 0:04:23]} O-O {[%emt 0:00:46]} 14. Bf4 {[%emt 0:03:12]} Bb4 {[%emt 0:10:49]} 15. Ne5 {[%emt 0:05:57]} Be6 {[%emt 0:08:08]} 16. Nd3 {[%emt 0:02:31]} Be7 {[%emt 0:09:25]} 17. Nc5 {[%emt 0:05:33]} Bxc5 {[%emt 0:04:20]} 18. dxc5 {[%emt 0:00:13]} Nbd7 {[%emt 0:05:17]} 19. Bd6 {[%emt 0:04:31]} d4 {[%emt 0:02:31]} 20. Nd5 {[%emt 0:01:37]} Nxd5 {[%emt 0:00:28]} 21. Bxd5 {[%emt 0:00:16]} Nxc5 {[%emt 0:00:49]} 22. Bxc5 {[%emt 0:01:18]} Bxd5 {[%emt 0:00:33]} 23. Qd3 {[%emt 0:05:18]} Re8 {[%emt 0:00:32]} 24. Bxd4 {[%emt 0:07:55]} Rc8 {[%emt 0:09:00]} 25. Rac1 {[%emt 0:10:14]} Be4 {[%emt 0:01:39]} 26. Qd2 {[%emt 0:02:49]} Bc6 {[%emt 0:03:23]} 27. Qf4 {[%emt 0:01:42]} Qd5 {[%emt 0:00:23]} 28. Rxc6 {[%emt 0:02:23]} Rxc6 {[%emt 0:03:12]} 29. Bc3 {[%emt 0:02:43]} Rc4 {[%emt 0:00:47]} 30. Qf2 {[%emt 0:01:17]} Rxa4 {[%emt 0:03:53]} 31. e3 {[%emt 0:02:05]} Rae4 {[%emt 0:00:44]} 32. Bxa5 {[%emt 0:01:24]} Rxe3 {[%emt 0:01:11]} 33. Bc3 {[%emt 0:00:55]} Re2 {[%emt 0:00:28]} 34. Re1 {[%emt 0:01:49]} Rxe1+ {[%emt 0:01:44]} 35. Bxe1 {[%emt 0:00:08]} Qd1 {[%emt 0:00:05]} 36. Kf1 {[%emt 0:00:14]} Qd3+ {[%emt 0:00:04]} 37. Kg1 {[%emt 0:00:28]} Re2 {[%emt 0:00:08]} 38. Qf1 {[%emt 0:00:37]} Qd1 {[%emt 0:00:56]} 0-1

[Event "Najdorf Memorial-B 2022"]
[Site "Warsaw"]
[Date "2022.07.17"]
[Round "9.6"]
[White "Leszczewicz, Karol"]
[Black "Szymkiewicz, Witold"]
[Result "0-1"]
[ECO "D56"]
[WhiteElo "1519"]
[BlackElo "1642"]
[Annotator "NA COMBH"]
[PlyCount "116"]
[EventDate "2022.07.09"]
[EventType "swiss"]
[EventCountry "POL"]
[SourceTitle "playchess.com"]
[Source "ChessBase"]
[SourceQuality "1"]
[TimeControl "40/5400+30:1800+30"]

1. d4 {[%emt 0:00:03]} d5 {[%emt 0:00:20]} 2. c4 {[%emt 0:00:08]} e6 {[%emt 0:00:12]} 3. Nc3 {[%emt 0:00:09]} Nf6 {[%emt 0:00:04]} 4. Nf3 {[%emt 0:00:06]} Be7 {[%emt 0:03:00]} 5. Bg5 {[%emt 0:01:01]} h6 {[%emt 0:00:37]} 6. Bh4 {[%emt 0:00:07]} O-O {[%emt 0:00:13]} 7. e3 {[%emt 0:00:07]} Nbd7 {[%emt 0:00:33]} 8. Qc2 {[%emt 0:00:55]} Re8 {[%emt 0:02:24]} 9. Bd3 {[%emt 0:00:23]} dxc4 {[%emt 0:00:58]} 10. Bxc4 {[%emt 0:00:10]} a6 {[%emt 0:00:54]} 11. a4 {[%emt 0:00:13]} b6 {[%emt 0:00:20]} 12. O-O {[%emt 0:06:51]} Bb7 {[%emt 0:01:06]} 13. e4 {[%emt 0:01:56]} c5 {[%emt 0:00:43]} 14. d5 {[%emt 0:04:53]} exd5 {[%emt 0:00:29]} 15. Nxd5 {[%emt 0:01:05]} Nxd5 16. Bxd5 {[%emt 0:00:07]} Bxd5 {[%emt 0:04:01]} 17. Bxe7 {[%emt 0:00:08]} Bxe4 {[%emt 0:02:02]} 18. Qxe4 {[%emt 0:01:41]} Rxe7 {[%emt 0:01:36]} 19. Qd3 {[%emt 0:01:54]} Ne5 {[%emt 0:01:48]} 20. Nxe5 Rxe5 {[%emt 0:00:15]} 21. Qf3 {[%emt 0:01:46]} Qd5 {[%emt 0:01:18]} 22. Qc3 {[%emt 0:08:35]} Rd8 {[%emt 0:08:59]} 23. g3 {[%emt 0:02:11]} Qe6 {[%emt 0:02:42]} 24. Rad1 {[%emt 0:02:08]} Rxd1 {[%emt 0:02:35]} 25. Rxd1 {[%emt 0:00:02]} Rd5 {[%emt 0:00:44]} 26. Re1 {[%emt 0:01:48]} Qd7 {[%emt 0:00:14]} 27. Qb3 {[%emt 0:00:28]} b5 {[%emt 0:01:38]} 28. axb5 {[%emt 0:00:07]} axb5 {[%emt 0:00:06]} 29. Ra1 {[%emt 0:01:43]} c4 {[%emt 0:02:49]} 30. Qc2 {[%emt 0:00:23]} g6 {[%emt 0:02:11]} 31. Ra8+ {[%emt 0:00:34]} Kh7 {[%emt 0:00:06]} 32. Qe4 {[%emt 0:06:46]} Rd1+ {[%emt 0:11:51]} 33. Kg2 {[%emt 0:00:33]} Qd3 {[%emt 0:07:59]} 34. Qxd3 {[%emt 0:04:27]} Rxd3 {[%emt 0:00:37]} 35. Ra1 {[%emt 0:02:06]} Rd2 {[%emt 0:00:34]} 36. Rb1 {[%emt 0:00:06]} Rc2 {[%emt 0:02:56]} 37. Kf3 {[%emt 0:00:52]} b4 {[%emt 0:00:19]} 38. h4 {[%emt 0:00:46]} Kg7 {[%emt 0:01:26]} 39. Ke3 {[%emt 0:00:12]} Kf6 {[%emt 0:00:29]} 40. f4 {[%emt 0:00:00]} Kf5 {[%emt 0:00:00]} 41. Kf3 {[%emt 0:00:38]} h5 42. Rd1 {[%emt 0:00:44]} Rxb2 {[%emt 0:01:16]} 43. Rd5+ {[%emt 0:00:05]} Kf6 {[%emt 0:00:30]} 44. Rd6+ Ke7 {[%emt 0:00:02]} 45. Rc6 {[%emt 0:00:10]} c3 {[%emt 0:00:20]} 46. Rc4 {[%emt 0:00:17]} c2 {[%emt 0:00:30]} 47. Ke3 {[%emt 0:00:16]} b3 {[%emt 0:00:10]} 48. Kd2 {[%emt 0:00:36]} Rb1 {[%emt 0:00:07]} 49. Rc7+ {[%emt 0:00:54]} Kd6 {[%emt 0:00:08]} 50. Rc8 {[%emt 0:00:25]} Rd1+ {[%emt 0:00:09]} 51. Ke2 {[%emt 0:00:08]} Kd7 {[%emt 0:00:23]} 52. Rf8 {[%emt 0:01:07]} c1=Q {[%emt 0:00:08]} 53. Rxf7+ Ke6 {[%emt 0:00:21]} 54. f5+ {[%emt 0:00:55]} gxf5 {[%emt 0:00:16]} 55. Re7+ {[%emt 0:00:23]} Kf6 {[%emt 0:00:24]} 56. Rf7+ {[%emt 0:00:32]} Kxf7 {[%emt 0:00:08]} 57. Kf3 {[%emt 0:00:45]} Rf1+ {[%emt 0:00:24]} 58. Ke2 {[%emt 0:01:56] Check Result:-#1} Qd1+ {[%emt 0:00:35]} 0-1